[Event "DEN-ch Landsholdsklassen 2021"]
[Site "Svendborg"]
[Date "2021.10.16"]
[Round "1.1"]
[White "Hansen, Sune Berg"]
[Black "Antonsen, Mikkel"]
[Result "1-0"]
[ECO "D78"]
[WhiteElo "2528"]
[BlackElo "2409"]
[Annotator "ChessBase"]
[PlyCount "55"]
[EventDate "2021.10.16"]
[EventType "tourn"]
[EventCountry "DEN"]
[SourceTitle "playchess.com"]
[Source "ChessBase"]
[SourceQuality "1"]
[TimeControl "40/5400+30:1800+30"]

1. Nf3 {[%emt 0:00:32]} Nf6 {[%emt 0:00:54]} 2. g3 {[%emt 0:01:37]} g6 {[%emt 0:00:39]} 3. Bg2 {[%emt 0:00:51]} Bg7 {[%emt 0:00:13]} 4. O-O {[%emt 0:00:51]} O-O {[%emt 0:00:55]} 5. d4 {[%emt 0:00:40]} d5 {[%emt 0:00:10]} 6. c4 {[%emt 0:00:07]} c6 {[%emt 0:05:34]} 7. Qb3 {[%emt 0:00:36]} Qb6 {[%emt 0:00:19]} 8. Nc3 {[%emt 0:00:12]} Rd8 {[%emt 0:00:07]} 9. Bd2 {[%emt 0:00:06]} dxc4 {[%emt 0:02:03]} 10. Qxc4 {[%emt 0:00:12]} Na6 {[%emt 0:01:02]} 11. e4 {[%emt 0:10:20]} Bg4 {[%emt 0:09:07]} 12. Ng5 {[%emt 0:19:55]} e6 {[%emt 0:00:43]} 13. Be3 {[%emt 0:00:23]} h6 {[%emt 0:02:34]} 14. Nf3 {[%emt 0:00:38]} Nd7 {[%emt 0:10:37]} 15. Rfc1 {[%emt 0:12:41]} Qxb2 {[%emt 0:10:32]} 16. Rab1 {[%emt 0:07:18]} Nb6 {[%emt 0:00:18]} 17. Qf1 {[%emt 0:01:12]} Qa3 {[%emt 0:00:08]} 18. Ne5 {[%emt 0:00:48]} Bh5 {[%emt 0:02:04]} 19. f4 {[%emt 0:13:36]} Qe7 {[%emt 0:07:44]} 20. h3 {[%emt 0:05:27]} f5 {[%emt 0:09:46]} 21. a4 {[%emt 0:05:37]} Rab8 {[%emt 0:10:15]} 22. a5 {[%emt 0:01:52]} Nd7 {[%emt 0:00:05]} 23. Rxb7 {[%emt 0:01:36]} Rxb7 {[%emt 0:00:29]} 24. Nxc6 {[%emt 0:00:12]} Qa3 {[%emt 0:08:15]} 25. Nxd8 {[%emt 0:04:55]} Rc7 {[%emt 0:03:15]} 26. Qxa6 {[%emt 0:00:41]} Rxc3 {[%emt 0:00:28]} 27. Qxe6+ {[%emt 0:00:28]} Kh7 {[%emt 0:00:06]} 28. Qxd7 {[%emt 0:01:07]} 1-0

[Event "DEN-ch Landsholdsklassen 2021"]
[Site "Svendborg"]
[Date "2021.10.16"]
[Round "1.4"]
[White "Fries-Nielsen, Jens Ove"]
[Black "Chatalbashev, Boris"]
[Result "1-0"]
[ECO "B21"]
[WhiteElo "2378"]
[BlackElo "2536"]
[Annotator "ChessBase"]
[PlyCount "87"]
[EventDate "2021.10.16"]
[EventType "tourn"]
[EventCountry "DEN"]
[SourceTitle "playchess.com"]
[Source "ChessBase"]
[SourceQuality "1"]
[TimeControl "40/5400+30:1800+30"]

1. e4 {[%emt 0:05:34]} c5 {[%emt 0:00:11]} 2. f4 {[%emt 0:02:19]} Nc6 {[%emt 0:00:41]} 3. Nf3 {[%emt 0:01:04]} d5 {[%emt 0:01:42]} 4. exd5 {[%emt 0:08:11]} Qxd5 {[%emt 0:00:06]} 5. Nc3 {[%emt 0:00:13]} Qd6 {[%emt 0:00:54]} 6. d3 {[%emt 0:17:40]} Bg4 {[%emt 0:06:43]} 7. Be2 {[%emt 0:03:37]} Nf6 {[%emt 0:11:26]} 8. O-O {[%emt 0:14:34]} Rd8 {[%emt 0:04:58]} 9. Nd2 {[%emt 0:12:01]} Bxe2 {[%emt 0:01:19]} 10. Qxe2 {[%emt 0:00:18]} Nd4 {[%emt 0:01:13]} 11. Qd1 {[%emt 0:00:33]} e6 {[%emt 0:00:41]} 12. Nce4 {[%emt 0:05:20]} Nxe4 {[%emt 0:11:16]} 13. dxe4 {[%emt 0:01:32]} Qa6 {[%emt 0:01:04]} 14. c4 {[%emt 0:01:25]} Be7 {[%emt 0:03:27]} 15. b3 {[%emt 0:01:29]} O-O {[%emt 0:06:56]} 16. Bb2 {[%emt 0:01:55]} Qc6 {[%emt 0:04:07]} 17. Re1 {[%emt 0:03:02]} f5 {[%emt 0:18:12]} 18. Nf3 {[%emt 0:06:16]} fxe4 {[%emt 0:09:08]} 19. Ne5 {[%emt 0:00:24]} Qc7 {[%emt 0:01:36]} 20. Rxe4 {[%emt 0:01:30]} Bd6 {[%emt 0:03:17]} 21. Bxd4 {[%emt 0:01:23]} cxd4 {[%emt 0:01:32]} 22. Qd3 {[%emt 0:00:40]} Rf5 {[%emt 0:01:20]} 23. Rae1 {[%emt 0:00:50]} Rdf8 {[%emt 0:02:50]} 24. g3 {[%emt 0:00:08]} g5 {[%emt 0:00:15]} 25. Ng4 {[%emt 0:00:43]} Bb4 {[%emt 0:03:31]} 26. R1e2 {[%emt 0:02:31]} Kh8 {[%emt 0:00:51]} 27. Qxd4+ {[%emt 0:02:16]} Qg7 {[%emt 0:01:05]} 28. Qxg7+ {[%emt 0:00:51]} Kxg7 {[%emt 0:00:02]} 29. fxg5 {[%emt 0:01:40]} Rxg5 {[%emt 0:00:01]} 30. Kg2 {[%emt 0:00:11]} Bc3 {[%emt 0:01:56]} 31. Nf2 {[%emt 0:01:17]} e5 {[%emt 0:00:15]} 32. Nd3 {[%emt 0:00:23]} Re8 {[%emt 0:00:36]} 33. Nf4 {[%emt 0:01:03]} Kf7 {[%emt 0:00:35]} 34. Nd5 {[%emt 0:01:10]} Bd4 {[%emt 0:00:01]} 35. h4 {[%emt 0:01:31]} Rg6 {[%emt 0:00:12]} 36. g4 {[%emt 0:00:21]} a6 {[%emt 0:01:03]} 37. Re1 {[%emt 0:00:09]} Rd6 {[%emt 0:00:53]} 38. g5 {[%emt 0:00:28]} h6 {[%emt 0:00:59]} 39. Rf1+ {[%emt 0:01:42]} Kg7 {[%emt 0:00:06]} 40. Nf6 {[%emt 0:01:12]} Rh8 {[%emt 0:01:18]} 41. gxh6+ {[%emt 0:04:33]} Kxh6 {[%emt 0:00:20]} 42. Rg4 {[%emt 0:00:11]} e4 {[%emt 0:04:29]} 43. Nxe4 {[%emt 0:07:38]} Rg6 {[%emt 0:00:06]} 44. Ng5 {[%emt 0:00:34]} 1-0

[Event "DEN-ch Landsholdsklassen 2021"]
[Site "Svendborg"]
[Date "2021.10.16"]
[Round "1.5"]
[White "Rewitz, Poul"]
[Black "Haubro, Martin"]
[Result "0-1"]
[ECO "A07"]
[WhiteElo "2264"]
[BlackElo "2426"]
[Annotator "NA"]
[PlyCount "108"]
[EventDate "2021.10.16"]
[EventType "tourn"]
[EventCountry "DEN"]
[SourceTitle "playchess.com"]
[Source "ChessBase"]
[SourceQuality "1"]
[TimeControl "40/5400+30:1800+30"]

1. g3 {[%emt 0:00:21]} d5 {[%emt 0:00:34]} 2. Nf3 {[%emt 0:01:07]} Nf6 {[%emt 0:10:01]} 3. Bg2 {[%emt 0:00:22]} c6 {[%emt 0:00:04]} 4. O-O {[%emt 0:00:44]} Bg4 {[%emt 0:00:28]} 5. d3 {[%emt 0:06:20]} Nbd7 {[%emt 0:00:51]} 6. c4 {[%emt 0:01:46]} e6 {[%emt 0:04:53]} 7. Nbd2 {[%emt 0:05:52]} Be7 {[%emt 0:10:42]} 8. b3 {[%emt 0:01:19]} O-O {[%emt 0:02:46]} 9. Bb2 {[%emt 0:00:36]} a5 {[%emt 0:01:00]} 10. a3 {[%emt 0:00:43]} b5 {[%emt 0:01:21]} 11. cxb5 {[%emt 0:14:28]} cxb5 {[%emt 0:00:05]} 12. Rc1 {[%emt 0:00:23]} Qb6 {[%emt 0:05:22]} 13. Qc2 {[%emt 0:02:02]} Bc5 {[%emt 0:13:27]} 14. d4 {[%emt 0:12:57]} Bd6 {[%emt 0:00:05]} 15. Qc6 {[%emt 0:00:32]} Qb8 {[%emt 0:10:52]} 16. e4 {[%emt 0:03:21]} dxe4 {[%emt 0:02:32]} 17. Nxe4 {[%emt 0:02:24]} Nxe4 {[%emt 0:00:07]} 18. Qxe4 {[%emt 0:02:09]} Nf6 {[%emt 0:02:05]} 19. Qc6 {[%emt 0:06:45]} Rc8 {[%emt 0:10:21]} 20. Qxc8+ {[%emt 0:00:29]} Qxc8 {[%emt 0:00:04]} 21. Rxc8+ {[%emt 0:00:09]} Rxc8 {[%emt 0:00:01]} 22. Rc1 {[%emt 0:03:01]} Rxc1+ {[%emt 0:00:11]} 23. Bxc1 {[%emt 0:00:07]} Nd5 {[%emt 0:00:23]} 24. Nd2 {[%emt 0:03:17]} Bd1 {[%emt 0:12:56]} 25. Kf1 {[%emt 0:05:41]} Nc3 {[%emt 0:02:41]} 26. Ke1 {[%emt 0:01:04]} Bc2 {[%emt 0:00:03]} 27. Bc6 {[%emt 0:03:33]} Be7 $17 {[%emt 0:04:37]} 28. f3 {[%emt 0:05:39]} Bf6 {[%emt 0:00:43]} 29. Ne4 {[%emt 0:09:47]} Nxe4 {[%emt 0:01:35]} 30. fxe4 {[%emt 0:00:19]} Bxd4 {[%emt 0:00:03]} 31. Bxb5 {[%emt 0:03:39]} Bxb3 {[%emt 0:01:08]} 32. a4 {[%emt 0:01:18]} Bg1 {[%emt 0:02:26]} 33. Bd2 {[%emt 0:00:40]} Bb6 {[%emt 0:00:10]} 34. Ke2 {[%emt 0:00:22]} Kf8 {[%emt 0:00:06]} 35. Kd3 {[%emt 0:02:00]} Ke7 {[%emt 0:00:04]} 36. Bc3 {[%emt 0:00:27]} f6 {[%emt 0:00:21]} 37. Be1 {[%emt 0:01:41]} Kd6 {[%emt 0:00:39]} 38. Bd2 {[%emt 0:00:11]} Ba2 {[%emt 0:01:27]} 39. Kc2 {[%emt 0:01:31]} e5 {[%emt 0:00:39]} 40. Be1 {[%emt 0:00:29]} Be6 {[%emt 0:00:11]} 41. h4 {[%emt 0:06:48]} Bg4 {[%emt 0:02:44]} 42. Kd3 {[%emt 0:01:28]} g6 {[%emt 0:03:13]} 43. Be8 {[%emt 0:02:10]} Bd1 {[%emt 0:01:01]} 44. Kd2 {[%emt 0:01:21]} Bf3 {[%emt 0:00:07]} 45. Kd3 {[%emt 0:00:38]} f5 {[%emt 0:01:52]} 46. exf5 {[%emt 0:00:18]} gxf5 {[%emt 0:00:03]} 47. Kc2 {[%emt 0:06:27]} Bg2 {[%emt 0:10:39]} 48. Bd2 {[%emt 0:06:06]} Bc6 {[%emt 0:01:33]} 49. Bxc6 {[%emt 0:00:57]} Kxc6 {[%emt 0:00:02]} 50. Kd3 {[%emt 0:04:08]} Kd5 {[%emt 0:00:35]} 51. Be1 {[%emt 0:00:46]} h5 {[%emt 0:00:26]} 52. Bc3 {[%emt 0:01:38]} e4+ {[%emt 0:01:33]} 53. Kc2 {[%emt 0:00:45]} Bc7 {[%emt 0:00:06]} 54. Be1 {[%emt 0:00:18]} Kc4 {[%emt 0:00:03]} 0-1

[Event "DEN-ch Landsholdsklassen 2021"]
[Site "Svendborg"]
[Date "2021.10.21"]
[Round "6.3"]
[White "Fries-Nielsen, Jens Ove"]
[Black "Schandorff, Lars"]
[Result "1/2-1/2"]
[ECO "A45"]
[WhiteElo "2378"]
[BlackElo "2458"]
[Annotator "ChessBase"]
[PlyCount "61"]
[EventDate "2021.10.16"]
[EventType "tourn"]
[EventCountry "DEN"]
[SourceTitle "playchess.com"]
[Source "ChessBase"]
[SourceQuality "1"]
[TimeControl "40/5400+30:1800+30"]

1. d4 {[%emt 0:03:24]} Nf6 {[%emt 0:00:36]} 2. Nc3 {[%emt 0:01:10]} d5 {[%emt 0:00:18]} 3. e3 {[%emt 0:00:37]} e6 {[%emt 0:01:32]} 4. g4 {[%emt 0:03:35]} Bb4 {[%emt 0:04:13]} 5. Bd2 {[%emt 0:00:12]} b6 {[%emt 0:04:13]} 6. Bg2 {[%emt 0:01:13]} Bb7 {[%emt 0:02:19]} 7. Nh3 {[%emt 0:03:42]} O-O {[%emt 0:06:55]} 8. Nf4 {[%emt 0:01:13]} Bd6 {[%emt 0:02:53]} 9. g5 {[%emt 0:01:40]} Ne4 {[%emt 0:02:22]} 10. Bxe4 {[%emt 0:00:59]} dxe4 {[%emt 0:00:08]} 11. Qg4 {[%emt 0:00:19]} Nd7 {[%emt 0:06:53]} 12. Rg1 {[%emt 0:03:46]} Qe7 {[%emt 0:13:55]} 13. O-O-O {[%emt 0:04:37]} Bxf4 {[%emt 0:15:27]} 14. Qxf4 {[%emt 0:02:59]} e5 {[%emt 0:00:08]} 15. Qh4 {[%emt 0:00:59]} f5 {[%emt 0:12:23]} 16. gxf6 {[%emt 0:00:41]} Qxf6 {[%emt 0:00:12]} 17. Qg4 {[%emt 0:05:05]} Rf7 {[%emt 0:02:23]} 18. Nxe4 {[%emt 0:03:42]} Qf5 {[%emt 0:01:51]} 19. Ng5 {[%emt 0:07:58]} Qxg4 {[%emt 0:00:07]} 20. Rxg4 {[%emt 0:00:06]} Rxf2 {[%emt 0:00:11]} 21. Ne6 {[%emt 0:04:43]} g6 {[%emt 0:01:02]} 22. Rh4 {[%emt 0:01:25]} exd4 {[%emt 0:12:50]} 23. exd4 {[%emt 0:00:44]} Nf6 {[%emt 0:01:23]} 24. Rf4 {[%emt 0:04:49]} Rxf4 {[%emt 0:00:26]} 25. Bxf4 {[%emt 0:00:14]} Nd5 {[%emt 0:01:07]} 26. Be5 {[%emt 0:05:37]} c6 {[%emt 0:00:42]} 27. Nc7 {[%emt 0:09:13]} Nxc7 {[%emt 0:01:24]} 28. Bxc7 {[%emt 0:00:02]} Rc8 {[%emt 0:00:15]} 29. Bg3 {[%emt 0:00:37]} Re8 {[%emt 0:00:42]} 30. Kd2 {[%emt 0:00:29]} Bc8 {[%emt 0:01:50]} 31. h3 1/2-1/2

[Event "DEN-ch Landsholdsklassen 2021"]
[Site "Svendborg"]
[Date "2021.10.21"]
[Round "6.5"]
[White "Borge, Nikolaj"]
[Black "Rewitz, Poul"]
[Result "1-0"]
[ECO "B12"]
[WhiteElo "2381"]
[BlackElo "2264"]
[Annotator "ChessBase"]
[PlyCount "217"]
[EventDate "2021.10.16"]
[EventType "tourn"]
[EventCountry "DEN"]
[SourceTitle "playchess.com"]
[Source "ChessBase"]
[SourceQuality "1"]
[TimeControl "40/5400+30:1800+30"]

1. e4 {[%emt 0:01:09]} c6 {[%emt 0:00:12]} 2. d4 {[%emt 0:00:05]} d5 {[%emt 0:00:05]} 3. e5 {[%emt 0:00:04]} Bf5 {[%emt 0:00:14]} 4. Nf3 {[%emt 0:00:28]} e6 {[%emt 0:00:15]} 5. Be2 {[%emt 0:00:06]} Ne7 {[%emt 0:00:43]} 6. O-O {[%emt 0:01:10]} Bg6 {[%emt 0:00:24]} 7. a4 {[%emt 0:04:40]} Nf5 {[%emt 0:02:30]} 8. a5 {[%emt 0:02:35]} Be7 {[%emt 0:00:51]} 9. h3 {[%emt 0:00:58]} O-O {[%emt 0:00:41]} 10. c4 {[%emt 0:06:40]} dxc4 {[%emt 0:05:25]} 11. Bxc4 {[%emt 0:00:56]} Na6 {[%emt 0:03:55]} 12. Nc3 {[%emt 0:01:54]} Nb4 {[%emt 0:02:29]} 13. Ne2 {[%emt 0:07:49]} c5 {[%emt 0:06:27]} 14. dxc5 {[%emt 0:01:18]} Bxc5 {[%emt 0:08:57]} 15. Qb3 {[%emt 0:11:04]} Nh4 {[%emt 0:02:24]} 16. Ne1 {[%emt 0:11:34]} Rc8 {[%emt 0:09:53]} 17. Ra4 {[%emt 0:18:31]} Nc6 {[%emt 0:06:10]} 18. Qc3 {[%emt 0:02:29]} Qd1 {[%emt 0:09:12]} 19. Qb3 {[%emt 0:12:01]} Qd8 {[%emt 0:04:41]} 20. a6 {[%emt 0:01:08]} b6 {[%emt 0:01:41]} 21. Bb5 {[%emt 0:01:23]} Nxe5 {[%emt 0:03:43]} 22. Qg3 {[%emt 0:02:17]} Be7 {[%emt 0:03:48]} 23. Rd4 {[%emt 0:02:01]} Qc7 {[%emt 0:12:46]} 24. Rxh4 {[%emt 0:00:21]} Bxh4 {[%emt 0:00:28]} 25. Qxh4 {[%emt 0:00:02]} Rfd8 {[%emt 0:03:09]} 26. Nc3 {[%emt 0:00:35]} h6 {[%emt 0:01:02]} 27. Qg3 {[%emt 0:01:04]} Nc4 {[%emt 0:04:04]} 28. Qxc7 {[%emt 0:01:31]} Rxc7 {[%emt 0:00:06]} 29. Nf3 {[%emt 0:00:43]} Rc5 {[%emt 0:01:43]} 30. Re1 {[%emt 0:02:06]} Na3 {[%emt 0:02:13]} 31. bxa3 {[%emt 0:01:21]} Rxc3 {[%emt 0:00:07]} 32. a4 {[%emt 0:03:01]} Rd5 {[%emt 0:01:18]} 33. Bf4 {[%emt 0:00:31]} Bd3 {[%emt 0:01:03]} 34. Be5 {[%emt 0:01:08]} Ra3 {[%emt 0:00:54]} 35. Rd1 {[%emt 0:02:05]} Bc2 {[%emt 0:01:01]} 36. Rxd5 {[%emt 0:00:52]} exd5 {[%emt 0:00:12]} 37. Bb8 {[%emt 0:00:23]} Ra1+ {[%emt 0:00:32]} 38. Kh2 {[%emt 0:00:05]} Bxa4 {[%emt 0:00:09]} 39. Bd3 {[%emt 0:00:33]} Bb3 {[%emt 0:00:53]} 40. Bxa7 {[%emt 0:01:16]} Bc4 {[%emt 0:00:28]} 41. Bxc4 {[%emt 0:00:55]} dxc4 {[%emt 0:03:18]} 42. Bxb6 {[%emt 0:00:04]} Rxa6 {[%emt 0:11:29]} 43. Be3 {[%emt 0:01:43]} c3 {[%emt 0:02:06]} 44. Nd4 {[%emt 0:00:56]} Rd6 {[%emt 0:01:49]} 45. Kg3 {[%emt 0:01:14]} Rd5 {[%emt 0:04:32]} 46. Kf4 {[%emt 0:02:35]} f6 {[%emt 0:06:40]} 47. Ke4 {[%emt 0:00:29]} Rd8 {[%emt 0:00:41]} 48. Kd3 {[%emt 0:00:15]} Rc8 {[%emt 0:00:09]} 49. Ne2 {[%emt 0:00:19]} c2 {[%emt 0:00:24]} 50. Nc3 {[%emt 0:00:13]} Rd8+ {[%emt 0:00:16]} 51. Kxc2 {[%emt 0:00:06]} Kf7 {[%emt 0:00:21]} 52. Nb5 {[%emt 0:00:14]} Ra8 {[%emt 0:00:48]} 53. Kd3 {[%emt 0:01:05]} h5 {[%emt 0:01:00]} 54. Ke4 {[%emt 0:00:32]} g6 {[%emt 0:00:33]} 55. h4 {[%emt 0:02:50]} Ra1 {[%emt 0:01:13]} 56. Bd4 {[%emt 0:00:59]} Rb1 {[%emt 0:00:50]} 57. Nd6+ {[%emt 0:00:59]} Ke6 {[%emt 0:00:29]} 58. Ne8 {[%emt 0:03:39]} Re1+ {[%emt 0:00:36]} 59. Kd3 {[%emt 0:02:08]} Rd1+ {[%emt 0:01:15]} 60. Ke3 {[%emt 0:03:07]} f5 {[%emt 0:00:48]} 61. Nc7+ {[%emt 0:00:28]} Kf7 {[%emt 0:00:28]} 62. Nb5 {[%emt 0:00:39]} Re1+ {[%emt 0:00:27]} 63. Kf3 {[%emt 0:02:21]} Rb1 {[%emt 0:00:30]} 64. Nc3 {[%emt 0:00:26]} Rb4 {[%emt 0:00:40]} 65. Ne2 {[%emt 0:00:24]} Ra4 {[%emt 0:00:18]} 66. g3 {[%emt 0:00:41]} Ra2 {[%emt 0:00:21]} 67. Nf4 {[%emt 0:00:44]} Ra3+ {[%emt 0:00:09]} 68. Ke2 {[%emt 0:00:23]} Rb3 {[%emt 0:00:22]} 69. Nd3 {[%emt 0:00:29]} Rb1 {[%emt 0:01:26]} 70. Ne5+ {[%emt 0:01:18]} Kg7 {[%emt 0:00:16]} 71. Kf3 {[%emt 0:00:52]} Kh7 {[%emt 0:00:27]} 72. Nd7 {[%emt 0:01:32]} Rb4 {[%emt 0:00:44]} 73. Ke3 {[%emt 0:00:50]} Ra4 {[%emt 0:00:16]} 74. Kd3 {[%emt 0:01:17]} Kh6 {[%emt 0:00:21]} 75. Nf6 {[%emt 0:00:32]} Ra2 {[%emt 0:00:35]} 76. Kc4 {[%emt 0:00:39]} Ra5 {[%emt 0:00:11]} 77. Kb4 {[%emt 0:00:47]} Ra2 {[%emt 0:00:26]} 78. Kc5 {[%emt 0:00:11]} Ra4 {[%emt 0:00:46]} 79. Ng8+ {[%emt 0:02:12]} Kh7 {[%emt 0:00:07]} 80. Ne7 {[%emt 0:00:09]} Ra6 {[%emt 0:01:11]} 81. Kd5 {[%emt 0:00:21]} Kh6 {[%emt 0:00:21]} 82. Ng8+ {[%emt 0:02:01]} Kh7 {[%emt 0:00:07]} 83. Nf6+ {[%emt 0:00:08]} Kh6 {[%emt 0:00:17]} 84. Ne8 {[%emt 0:00:05]} Kh7 {[%emt 0:00:33]} 85. Nd6 {[%emt 0:00:42]} Ra4 {[%emt 0:00:14]} 86. Be3 {[%emt 0:01:28]} Kg7 {[%emt 0:00:23]} 87. Ke6 {[%emt 0:00:05]} Ra6 {[%emt 0:00:28]} 88. Bf4 {[%emt 0:00:45]} Ra2 {[%emt 0:00:08]} 89. Be5+ {[%emt 0:00:53]} Kh7 {[%emt 0:00:13]} 90. f3 {[%emt 0:01:55]} Ra3 {[%emt 0:00:13]} 91. Nf7 {[%emt 0:01:19]} Ra6+ {[%emt 0:00:15]} 92. Ke7 {[%emt 0:00:23]} Ra7+ {[%emt 0:00:14]} 93. Kf6 {[%emt 0:00:12]} Ra6+ {[%emt 0:00:27]} 94. Kg5 {[%emt 0:00:26]} Ra3 {[%emt 0:00:26]} 95. Nh8 {[%emt 0:02:34]} Rxf3 {[%emt 0:01:28]} 96. Nxg6 {[%emt 0:00:28]} Re3 {[%emt 0:01:44]} 97. Bf4 {[%emt 0:00:43]} Ra3 {[%emt 0:00:23]} 98. Kxh5 {[%emt 0:00:17]} Ra8 {[%emt 0:01:42]} 99. Kg5 {[%emt 0:00:18]} Ra5 {[%emt 0:00:41]} 100. Ne7 {[%emt 0:00:19]} Rb5 {[%emt 0:00:21]} 101. Nxf5 {[%emt 0:00:24]} Ra5 {[%emt 0:00:05]} 102. g4 {[%emt 0:00:11]} Rb5 {[%emt 0:00:05]} 103. Bd6 {[%emt 0:00:14]} Ra5 {[%emt 0:00:15]} 104. Kf6 {[%emt 0:00:04]} Kg8 {[%emt 0:00:47]} 105. g5 {[%emt 0:00:09]} Ra1 {[%emt 0:00:54]} 106. h5 {[%emt 0:00:43]} Rh1 {[%emt 0:00:35]} 107. Kg6 {[%emt 0:00:22]} Re1 {[%emt 0:00:20]} 108. Nh6+ {[%emt 0:00:20]} Kh8 {[%emt 0:00:28]} 109. Be5+ {[%emt 0:00:07]} 1-0

[Event "DEN-ch Landsholdsklassen 2021"]
[Site "Svendborg"]
[Date "2021.10.23"]
[Round "8.2"]
[White "Hansen, Sune Berg"]
[Black "Chatalbashev, Boris"]
[Result "1-0"]
[ECO "E94"]
[WhiteElo "2528"]
[BlackElo "2536"]
[Annotator "ChessBase"]
[PlyCount "79"]
[EventDate "2021.10.16"]
[EventType "tourn"]
[EventCountry "DEN"]
[SourceTitle "playchess.com"]
[Source "ChessBase"]
[SourceQuality "1"]
[TimeControl "40/5400+30:1800+30"]

1. e4 {[%emt 0:00:19]} g6 {[%emt 0:00:06]} 2. d4 {[%emt 0:00:28]} Bg7 {[%emt 0:00:06]} 3. Nf3 {[%emt 0:00:23]} d6 {[%emt 0:00:07]} 4. c4 {[%emt 0:00:07]} Nf6 {[%emt 0:00:34]} 5. Nc3 {[%emt 0:01:28]} O-O {[%emt 0:00:07]} 6. Be2 {[%emt 0:00:21]} e5 {[%emt 0:00:06]} 7. O-O {[%emt 0:01:26]} Na6 {[%emt 0:00:05]} 8. Re1 {[%emt 0:03:12]} Qe8 {[%emt 0:00:08]} 9. d5 {[%emt 0:11:06]} Nc5 {[%emt 0:00:29]} 10. Bf1 {[%emt 0:04:11]} a5 {[%emt 0:00:07]} 11. g3 {[%emt 0:02:17]} Bd7 {[%emt 0:04:49]} 12. Nh4 {[%emt 0:06:30]} Qe7 {[%emt 0:12:06]} 13. Bg5 {[%emt 0:02:58]} h6 {[%emt 0:00:24]} 14. Bd2 {[%emt 0:03:55]} Nh7 {[%emt 0:04:06]} 15. Qe2 {[%emt 0:05:48]} Ng5 {[%emt 0:02:43]} 16. Kh1 {[%emt 0:00:41]} Nh3 {[%emt 0:27:35]} 17. Be3 {[%emt 0:02:08]} Qf6 {[%emt 0:06:03]} 18. f3 {[%emt 0:10:23]} h5 {[%emt 0:02:46]} 19. Rad1 {[%emt 0:06:19]} Rae8 {[%emt 0:04:30]} 20. Nb5 {[%emt 0:07:15]} Qd8 {[%emt 0:03:30]} 21. Bxc5 {[%emt 0:03:57]} dxc5 {[%emt 0:00:05]} 22. d6 {[%emt 0:00:35]} Bxb5 {[%emt 0:02:13]} 23. cxb5 {[%emt 0:09:53]} Ng5 {[%emt 0:00:22]} 24. dxc7 {[%emt 0:02:49]} Qxc7 {[%emt 0:00:13]} 25. Ng2 {[%emt 0:00:27]} Ne6 {[%emt 0:00:59]} 26. Ne3 {[%emt 0:00:40]} Nd4 {[%emt 0:00:06]} 27. Qg2 {[%emt 0:00:23]} a4 {[%emt 0:04:45]} 28. Bc4 {[%emt 0:01:50]} Kh7 {[%emt 0:02:24]} 29. g4 {[%emt 0:00:34]} h4 {[%emt 0:07:07]} 30. g5 {[%emt 0:01:10]} Rh8 {[%emt 0:00:39]} 31. Qg4 {[%emt 0:03:54]} Kg8 {[%emt 0:00:39]} 32. Nd5 {[%emt 0:00:49]} Qd8 {[%emt 0:06:49]} 33. Rf1 {[%emt 0:01:15]} Rh5 {[%emt 0:03:40]} 34. f4 {[%emt 0:01:54]} Rf8 {[%emt 0:00:04]} 35. Rg1 {[%emt 0:00:52]} Kh7 {[%emt 0:04:47]} 36. f5 {[%emt 0:00:46]} Qc8 {[%emt 0:01:12]} 37. Rdf1 {[%emt 0:00:42]} Qd8 {[%emt 0:00:58]} 38. Nf6+ {[%emt 0:03:06]} Bxf6 {[%emt 0:00:02]} 39. gxf6 {[%emt 0:00:05]} Kh8 {[%emt 0:01:48]} 40. fxg6 {[%emt 0:00:36]} 1-0

[Event "DEN-ch Landsholdsklassen 2021"]
[Site "Svendborg"]
[Date "2021.10.23"]
[Round "8.4"]
[White "Schandorff, Lars"]
[Black "Rewitz, Poul"]
[Result "1/2-1/2"]
[ECO "A80"]
[WhiteElo "2458"]
[BlackElo "2264"]
[Annotator "ChessBase"]
[PlyCount "87"]
[EventDate "2021.10.16"]
[EventType "tourn"]
[EventCountry "DEN"]
[SourceTitle "playchess.com"]
[Source "ChessBase"]
[SourceQuality "1"]
[TimeControl "40/5400+30:1800+30"]

1. d4 {[%emt 0:00:27]} f5 {[%emt 0:00:38]} 2. Nf3 {[%emt 0:00:30]} Nf6 {[%emt 0:00:21]} 3. Bf4 {[%emt 0:00:04]} c6 {[%emt 0:01:47]} 4. e3 {[%emt 0:01:13]} d6 {[%emt 0:00:28]} 5. Be2 {[%emt 0:01:07]} g6 {[%emt 0:01:24]} 6. c4 {[%emt 0:01:45]} Bg7 {[%emt 0:02:00]} 7. Nc3 {[%emt 0:00:08]} Na6 {[%emt 0:01:25]} 8. O-O {[%emt 0:01:36]} O-O {[%emt 0:00:13]} 9. Bg3 {[%emt 0:10:32]} Nc7 {[%emt 0:03:18]} 10. b4 {[%emt 0:02:28]} Kh8 {[%emt 0:10:41]} 11. a4 {[%emt 0:18:54]} Be6 {[%emt 0:01:21]} 12. Nd2 {[%emt 0:02:42]} Bg8 {[%emt 0:04:30]} 13. Rc1 {[%emt 0:03:10]} Qe8 {[%emt 0:04:00]} 14. c5 {[%emt 0:02:53]} Rd8 {[%emt 0:02:18]} 15. Qc2 {[%emt 0:05:03]} Nfd5 {[%emt 0:06:13]} 16. Nxd5 {[%emt 0:18:09]} Nxd5 {[%emt 0:01:20]} 17. b5 {[%emt 0:00:51]} f4 {[%emt 0:04:47]} 18. Bxf4 {[%emt 0:04:20]} Nxf4 {[%emt 0:01:49]} 19. exf4 {[%emt 0:00:03]} Rxf4 {[%emt 0:05:11]} 20. bxc6 {[%emt 0:04:21]} bxc6 {[%emt 0:02:12]} 21. Nf3 {[%emt 0:04:52]} Bd5 {[%emt 0:03:44]} 22. Rfe1 {[%emt 0:01:47]} Qf7 {[%emt 0:07:32]} 23. Bc4 {[%emt 0:04:13]} dxc5 {[%emt 0:11:13]} 24. Bxd5 {[%emt 0:02:11]} Rxd5 {[%emt 0:01:06]} 25. Ne5 {[%emt 0:01:27]} Qf6 {[%emt 0:07:11]} 26. Qe2 {[%emt 0:03:52]} Rfxd4 {[%emt 0:03:54]} 27. Nc4 {[%emt 0:00:23]} h5 {[%emt 0:07:05]} 28. h3 {[%emt 0:00:11]} e5 {[%emt 0:00:42]} 29. Rc3 {[%emt 0:01:51]} e4 {[%emt 0:00:45]} 30. Re3 {[%emt 0:00:29]} Qf5 {[%emt 0:00:51]} 31. Rxe4 {[%emt 0:00:45]} Rxe4 {[%emt 0:00:46]} 32. Qxe4 {[%emt 0:00:05]} Qxe4 {[%emt 0:00:26]} 33. Rxe4 {[%emt 0:00:01]} Rd4 {[%emt 0:00:47]} 34. f3 {[%emt 0:00:57]} Rd1+ {[%emt 0:02:20]} 35. Kf2 {[%emt 0:00:31]} Ra1 {[%emt 0:00:30]} 36. a5 {[%emt 0:00:46]} Ra4 {[%emt 0:00:33]} 37. Ke3 {[%emt 0:00:27]} Bd4+ {[%emt 0:00:34]} 38. Kd3 {[%emt 0:00:06]} Ra2 {[%emt 0:00:23]} 39. Re2 {[%emt 0:01:14]} Rxe2 {[%emt 0:01:43]} 40. Kxe2 {[%emt 0:00:02]} Kg7 {[%emt 0:00:32]} 41. Kd3 {[%emt 0:07:51]} Kf6 {[%emt 0:01:21]} 42. Ke4 {[%emt 0:01:38]} h4 {[%emt 0:05:45]} 43. a6 {[%emt 0:03:10]} Ke6 {[%emt 0:01:12]} 44. Na5 {[%emt 0:03:11]} 1/2-1/2